[Event "48th Indian U15-ch Girls 2023"]
[Site "Jalgaon"]
[Date "2023.12.31"]
[Round "6.7"]
[White "Nivedita V C"]
[Black "Kumari Prasad Jagriti"]
[Result "1-0"]
[ECO "E43"]
[WhiteElo "1638"]
[BlackElo "1506"]
[Annotator "NA COMBH"]
[PlyCount "105"]
[EventDate "2023.12.30"]
[EventType "swiss"]
[EventCountry "IND"]
[SourceTitle "playchess.com"]
[Source "ChessBase"]
[SourceQuality "1"]
[TimeControl "5400+30"]

1. d4 {[%emt 0:00:02]} Nf6 {[%emt 0:00:09]} 2. c4 {[%emt 0:00:04]} e6 {[%emt 0:00:05]} 3. Nc3 {[%emt 0:00:03]} Bb4 {[%emt 0:00:06]} 4. e3 {[%emt 0:00:02]} b6 {[%emt 0:00:07]} 5. Nf3 {[%emt 0:00:15]} Bb7 {[%emt 0:00:08]} 6. Bd3 {[%emt 0:00:26]} O-O {[%emt 0:00:11]} 7. O-O {[%emt 0:00:31]} d6 {[%emt 0:02:44]} 8. a3 {[%emt 0:00:52]} Bxc3 {[%emt 0:00:27]} 9. bxc3 {[%emt 0:00:02]} Nbd7 {[%emt 0:00:13]} 10. Qc2 {[%emt 0:09:58]} c5 {[%emt 0:03:19]} 11. e4 {[%emt 0:02:45]} h6 {[%emt 0:00:56]} 12. e5 {[%emt 0:02:59]} Ne8 {[%emt 0:13:57]} 13. Be4 {[%emt 0:04:11]} Qc8 {[%emt 0:11:25]} 14. Bf4 {[%emt 0:04:00]} cxd4 {[%emt 0:11:20]} 15. cxd4 {[%emt 0:00:07]} dxe5 {[%emt 0:00:53]} 16. Nxe5 {[%emt 0:10:59]} Bxe4 {[%emt 0:01:46]} 17. Qxe4 {[%emt 0:00:04]} Nef6 {[%emt 0:00:30]} 18. Qf3 {[%emt 0:01:35]} Nxe5 {[%emt 0:03:19]} 19. Bxe5 {[%emt 0:00:44]} Nd7 {[%emt 0:04:37]} 20. Bd6 {[%emt 0:00:30]} Re8 {[%emt 0:00:07]} 21. Rac1 {[%emt 0:00:19]} e5 {[%emt 0:01:35]} 22. c5 {[%emt 0:02:11]} bxc5 {[%emt 0:03:08]} 23. dxc5 {[%emt 0:00:03]} e4 {[%emt 0:00:13]} 24. Qc3 {[%emt 0:02:11]} Qc6 {[%emt 0:00:32]} 25. Rfd1 {[%emt 0:01:10]} Rac8 {[%emt 0:00:23]} 26. h3 {[%emt 0:06:28]} Nf6 {[%emt 0:00:52]} 27. Be5 {[%emt 0:04:23]} Re6 {[%emt 0:00:28]} 28. Qd4 {[%emt 0:09:00]} Rce8 {[%emt 0:04:36]} 29. Bxf6 {[%emt 0:01:27]} Rxf6 {[%emt 0:00:06]} 30. Qd7 {[%emt 0:01:04]} a5 {[%emt 0:03:08]} 31. Qxc6 {[%emt 0:07:11]} Rxc6 {[%emt 0:00:07]} 32. Rd6 {[%emt 0:03:00]} Rec8 {[%emt 0:00:18]} 33. Rxc6 {[%emt 0:00:12]} Rxc6 {[%emt 0:00:05]} 34. Kf1 {[%emt 0:00:05]} f5 {[%emt 0:00:14]} 35. Ke2 {[%emt 0:00:13]} Kf7 {[%emt 0:00:05]} 36. Ke3 {[%emt 0:00:07]} Ke6 {[%emt 0:00:12]} 37. Kd4 {[%emt 0:00:07]} g6 {[%emt 0:00:12]} 38. Kc4 {[%emt 0:00:42]} f4 {[%emt 0:00:53]} 39. Kb5 {[%emt 0:01:29]} Rc8 {[%emt 0:00:06]} 40. c6 {[%emt 0:00:57]} Kd6 {[%emt 0:00:06]} 41. Rd1+ {[%emt 0:00:11]} Ke5 {[%emt 0:00:17]} 42. Kb6 {[%emt 0:00:26]} e3 {[%emt 0:00:15]} 43. fxe3 {[%emt 0:00:54]} fxe3 {[%emt 0:00:05]} 44. c7 {[%emt 0:00:16]} Kf4 {[%emt 0:01:09]} 45. Rd8 {[%emt 0:00:19]} e2 {[%emt 0:04:42]} 46. Rxc8 {[%emt 0:00:17]} e1=Q {[%emt 0:00:08]} 47. Rf8+ {[%emt 0:00:04]} Kg3 {[%emt 0:00:31]} 48. c8=Q {[%emt 0:00:05]} Qb1+ {[%emt 0:00:40]} 49. Ka7 {[%emt 0:00:11]} Qg1+ {[%emt 0:00:38]} 50. Ka6 {[%emt 0:00:06]} Qxg2 {[%emt 0:00:29]} 51. Qg4+ {[%emt 0:00:18]} Kh2 {[%emt 0:00:08]} 52. Qxg2+ {[%emt 0:00:03]} Kxg2 {[%emt 0:00:06]} 53. Rf6 {[%emt 0:00:05]} 1-0

[Event "48th Indian U15-ch Girls 2023"]
[Site "Jalgaon"]
[Date "2023.12.31"]
[Round "6.8"]
[White "Ananya Raman"]
[Black "Drishtee Ghosh"]
[Result "1-0"]
[ECO "B90"]
[WhiteElo "1505"]
[BlackElo "1605"]
[Annotator "NA COMBH"]
[PlyCount "79"]
[EventDate "2023.12.30"]
[EventType "swiss"]
[EventCountry "IND"]
[SourceTitle "playchess.com"]
[Source "ChessBase"]
[SourceQuality "1"]
[TimeControl "5400+30"]

1. e4 {[%emt 0:01:19]} c5 {[%emt 0:00:02]} 2. Nf3 {[%emt 0:00:37]} d6 {[%emt 0:00:02]} 3. d4 {[%emt 0:00:38]} cxd4 {[%emt 0:00:03]} 4. Nxd4 {[%emt 0:00:10]} Nf6 {[%emt 0:00:05]} 5. Nc3 {[%emt 0:00:10]} a6 {[%emt 0:00:01]} 6. Be3 {[%emt 0:00:36]} e5 {[%emt 0:00:08]} 7. Nb3 {[%emt 0:00:12]} Be7 {[%emt 0:00:07]} 8. f3 {[%emt 0:00:12]} Be6 {[%emt 0:00:05]} 9. Qd2 {[%emt 0:00:31]} h5 {[%emt 0:00:24]} 10. O-O-O {[%emt 0:04:18]} Nbd7 {[%emt 0:00:09]} 11. Nd5 {[%emt 0:01:27]} Nxd5 {[%emt 0:00:28]} 12. exd5 {[%emt 0:00:07]} Bf5 {[%emt 0:00:02]} 13. Bd3 {[%emt 0:00:26]} Bxd3 {[%emt 0:00:09]} 14. Qxd3 {[%emt 0:00:04]} Bg5 {[%emt 0:00:27]} 15. Kb1 {[%emt 0:08:27]} Bxe3 {[%emt 0:05:55]} 16. Qxe3 {[%emt 0:00:12]} O-O {[%emt 0:04:14]} 17. g4 {[%emt 0:11:08]} hxg4 {[%emt 0:17:47]} 18. fxg4 {[%emt 0:02:07]} b5 {[%emt 0:01:07]} 19. h4 {[%emt 0:07:59]} Nf6 {[%emt 0:11:19]} 20. Qf3 {[%emt 0:14:07]} g6 {[%emt 0:05:15]} 21. Nd2 {[%emt 0:07:06]} Kg7 {[%emt 0:01:43]} 22. Rdf1 {[%emt 0:04:04]} Rc8 {[%emt 0:04:20]} 23. h5 {[%emt 0:15:21]} Ng8 {[%emt 0:19:46]} 24. hxg6 {[%emt 0:05:36]} fxg6 {[%emt 0:00:20]} 25. Qh3 {[%emt 0:00:08]} Rxf1+ {[%emt 0:00:15]} 26. Nxf1 {[%emt 0:00:59]} Nf6 {[%emt 0:08:54]} 27. Qh6+ {[%emt 0:03:23]} Kf7 {[%emt 0:00:04]} 28. g5 {[%emt 0:03:30]} Nh5 {[%emt 0:01:47]} 29. Qh7+ {[%emt 0:03:24]} Ng7 {[%emt 0:00:02]} 30. Ne3 {[%emt 0:01:34]} Qg8 {[%emt 0:02:33]} 31. Rf1+ {[%emt 0:00:24]} Ke7 {[%emt 0:00:07]} 32. Qxg6 {[%emt 0:00:25]} Rf8 {[%emt 0:00:16]} 33. Rf6 {[%emt 0:02:30]} Qh8 {[%emt 0:02:49]} 34. Qxg7+ {[%emt 0:00:18]} Qxg7 {[%emt 0:00:10]} 35. Nf5+ {[%emt 0:00:01]} Kd8 {[%emt 0:00:20]} 36. Nxg7 {[%emt 0:00:08]} Rh8 {[%emt 0:00:19]} 37. Rh6 {[%emt 0:00:48]} Rg8 {[%emt 0:00:12]} 38. Ne6+ {[%emt 0:00:20]} Kc8 {[%emt 0:00:15]} 39. g6 {[%emt 0:00:08]} Kb8 {[%emt 0:00:04]} 40. g7 {[%emt 0:00:05]} 1-0

[Event "48th Indian U15-ch Girls 2023"]
[Site "Jalgaon"]
[Date "2023.12.31"]
[Round "6.9"]
[White "Avika Panwar"]
[Black "Kirthika B"]
[Result "0-1"]
[ECO "B97"]
[WhiteElo "1173"]
[BlackElo "1605"]
[Annotator "NA COMBH"]
[PlyCount "60"]
[EventDate "2023.12.30"]
[EventType "swiss"]
[EventCountry "IND"]
[SourceTitle "playchess.com"]
[Source "ChessBase"]
[SourceQuality "1"]
[TimeControl "5400+30"]

1. e4 {[%emt 0:00:04]} c5 {[%emt 0:00:19]} 2. Nf3 {[%emt 0:00:17]} d6 {[%emt 0:00:04]} 3. d4 {[%emt 0:00:28]} cxd4 {[%emt 0:00:05]} 4. Nxd4 {[%emt 0:00:25]} Nf6 {[%emt 0:00:06]} 5. Nc3 {[%emt 0:00:19]} a6 {[%emt 0:00:07]} 6. Bg5 {[%emt 0:01:27]} e6 {[%emt 0:00:21]} 7. f4 {[%emt 0:01:04]} h6 {[%emt 0:02:33]} 8. Bh4 {[%emt 0:03:22]} Qb6 {[%emt 0:00:06]} 9. Qd2 {[%emt 0:09:43]} Qxb2 {[%emt 0:03:21]} 10. Rb1 {[%emt 0:02:14]} Qa3 {[%emt 0:00:11]} 11. e5 {[%emt 0:06:06]} dxe5 {[%emt 0:03:14]} 12. fxe5 {[%emt 0:00:21]} Nd5 {[%emt 0:03:54]} 13. Nxd5 {[%emt 0:02:16]} exd5 {[%emt 0:00:11]} 14. Rb3 {[%emt 0:10:29]} Qa4 {[%emt 0:04:29]} 15. Nf3 {[%emt 0:11:19]} Nc6 {[%emt 0:05:52]} 16. Be2 {[%emt 0:08:32]} Qa5 {[%emt 0:09:35]} 17. c3 {[%emt 0:05:12]} Bc5 {[%emt 0:01:48]} 18. Rf1 {[%emt 0:12:17]} O-O {[%emt 0:05:29]} 19. Bf2 {[%emt 0:07:38]} Bxf2+ {[%emt 0:19:00]} 20. Rxf2 {[%emt 0:00:19]} Qc5 {[%emt 0:05:48]} 21. g4 {[%emt 0:08:50]} Bxg4 {[%emt 0:04:19]} 22. Rg2 {[%emt 0:00:28]} Bxf3 {[%emt 0:00:44]} 23. Bxf3 {[%emt 0:00:30]} Nxe5 {[%emt 0:01:22]} 24. Bxd5 {[%emt 0:04:54]} Rae8 {[%emt 0:18:48]} 25. Kd1 {[%emt 0:01:45]} Rd8 {[%emt 0:02:17]} 26. c4 {[%emt 0:01:01]} Nxc4 {[%emt 0:04:41]} 27. Rxg7+ {[%emt 0:01:27]} Kxg7 {[%emt 0:00:04]} 28. Rg3+ {[%emt 0:00:31]} Kh7 {[%emt 0:01:20]} 29. Qc2+ {[%emt 0:01:07]} f5 {[%emt 0:00:39]} 30. Rg7+ {[%emt 0:00:34]} Kxg7 {[%emt 0:00:22]} 0-1

[Event "48th Indian U15-ch Girls 2023"]
[Site "Jalgaon"]
[Date "2023.12.31"]
[Round "6.10"]
[White "Mishka Mathur"]
[Black "Rajanya Datta"]
[Result "1/2-1/2"]
[ECO "D02"]
[WhiteElo "1414"]
[BlackElo "1688"]
[Annotator "NA COMBH"]
[PlyCount "108"]
[EventDate "2023.12.30"]
[EventType "swiss"]
[EventCountry "IND"]
[SourceTitle "playchess.com"]
[Source "ChessBase"]
[SourceQuality "1"]
[TimeControl "5400+30"]

1. d4 d5 2. Nf3 Nf6 3. Bf4 c5 4. e3 Nc6 5. c3 Qb6 6. b3 Bf5 7. Bd3 Bxd3 8. Qxd3 e6 9. Nbd2 Be7 10. O-O Rc8 11. h3 O-O 12. Ne5 Qa5 13. Nxc6 Rxc6 14. c4 Rd8 15. Rac1 a6 16. a4 Qb6 17. Nf3 Rcc8 18. Rfd1 h6 19. Be5 Nd7 20. cxd5 Nxe5 21. Nxe5 Rxd5 22. Qb1 Rcd8 23. Nc4 Qb4 24. dxc5 Bxc5 25. Rxd5 Rxd5 26. Rd1 Qc3 27. Rc1 Qf6 28. Rd1 Rf5 29. Qc2 g6 30. Nd6 Bxd6 31. Rxd6 Rg5 32. Rd1 Qf3 33. Rd8+ Kh7 34. g3 Qf6 35. Rd7 b5 36. h4 Rh5 37. Kg2 Kg7 38. Rd4 e5 39. Rd5 bxa4 40. bxa4 Rf5 41. e4 Rf3 42. Rd3 Rxd3 43. Qxd3 Qc6 44. a5 Kf6 45. f3 Kg7 46. Qd2 Qb5 47. g4 Qc5 48. g5 h5 49. Qd8 Qc2+ 50. Kg3 Qc5 51. Qb6 Qc3 52. Qxa6 Qe1+ 53. Kg2 Qd2+ 54. Kf1 {[%emt 0:27:00]} Qd1+ {[%emt 0:27:00]} 1/2-1/2

[Event "48th Indian U15-ch Girls 2023"]
[Site "Jalgaon"]
[Date "2023.12.31"]
[Round "7.1"]
[White "Bhat Sannidhi Ramakrishna"]
[Black "Sachi Jain"]
[Result "1-0"]
[ECO "D02"]
[WhiteElo "1637"]
[BlackElo "1844"]
[Annotator "NA RC"]
[PlyCount "81"]
[EventDate "2023.12.30"]
[EventType "swiss"]
[EventCountry "IND"]
[SourceTitle "playchess.com"]
[Source "ChessBase"]
[SourceQuality "1"]
[TimeControl "5400+30"]

1. d4 {[%emt 0:00:06]} d5 {[%emt 0:02:22]} 2. Bf4 {[%emt 0:00:16]} e6 {[%emt 0:00:15]} 3. e3 {[%emt 0:00:20]} Nf6 {[%emt 0:00:05]} 4. Nd2 {[%emt 0:00:14]} c5 {[%emt 0:00:18]} 5. c3 {[%emt 0:00:20]} Nc6 {[%emt 0:00:10]} 6. Ngf3 {[%emt 0:00:17]} Bd6 {[%emt 0:00:06]} 7. Bg3 {[%emt 0:00:12]} O-O {[%emt 0:00:13]} 8. Bd3 {[%emt 0:00:18]} Qe7 {[%emt 0:00:09]} 9. Ne5 {[%emt 0:00:51]} Nd7 {[%emt 0:00:59]} 10. Nxd7 {[%emt 0:15:07]} Qxd7 {[%emt 0:00:44]} 11. Qh5 {[%emt 0:02:56]} f5 {[%emt 0:03:55]} 12. f4 {[%emt 0:08:38]} c4 {[%emt 0:04:14]} 13. Bc2 {[%emt 0:01:03]} b5 {[%emt 0:00:03]} 14. a3 {[%emt 0:06:46]} a5 {[%emt 0:01:32]} 15. Bf2 {[%emt 0:06:25]} Qf7 {[%emt 0:02:13]} 16. Qh3 {[%emt 0:03:09]} Bd7 {[%emt 0:00:25]} 17. g4 {[%emt 0:09:05]} b4 {[%emt 0:04:36]} 18. Nf3 {[%emt 0:11:30]} g6 {[%emt 0:00:49]} 19. gxf5 {[%emt 0:01:36]} exf5 {[%emt 0:00:13]} 20. Ng5 {[%emt 0:00:25]} Qe7 {[%emt 0:02:37]} 21. Qf3 {[%emt 0:00:15]} Kg7 {[%emt 0:01:37]} 22. h4 {[%emt 0:02:17]} h5 {[%emt 0:03:02]} 23. O-O {[%emt 0:01:53]} b3 {[%emt 0:03:29]} 24. Bd1 {[%emt 0:01:30]} Be6 {[%emt 0:00:37]} 25. Qg2 {[%emt 0:00:30]} Qf6 {[%emt 0:27:32]} 26. Bxh5 {[%emt 0:01:25]} Rh8 {[%emt 0:00:06]} 27. Bf3 {[%emt 0:00:35]} Ne7 {[%emt 0:00:02]} 28. h5 {[%emt 0:05:34]} Kf8 {[%emt 0:02:29]} 29. Bh4 {[%emt 0:00:27]} Ke8 {[%emt 0:00:56]} 30. Qg3 {[%emt 0:02:06]} Kd7 {[%emt 0:01:10]} 31. Ne4 {[%emt 0:04:04]} Qf7 {[%emt 0:00:32]} 32. Ng5 {[%emt 0:06:15]} Qf6 {[%emt 0:01:21]} 33. e4 {[%emt 0:00:16]} Bc7 {[%emt 0:10:46]} 34. Nh7 {[%emt 0:02:19]} Qg7 {[%emt 0:00:40]} 35. Nf6+ {[%emt 0:00:07]} Kc6 {[%emt 0:00:44]} 36. exd5+ {[%emt 0:00:37]} Bxd5 {[%emt 0:00:24]} 37. Rae1 {[%emt 0:01:44]} Bxf3 {[%emt 0:03:45]} 38. Qxf3+ {[%emt 0:00:06]} Kd6 {[%emt 0:00:04]} 39. Rxe7 {[%emt 0:00:11]} Kxe7 {[%emt 0:00:23]} 40. Re1+ {[%emt 0:00:08]} Kf7 {[%emt 0:00:44]} 41. Qd5+ {[%emt 0:00:05]} 1-0

[Event "48th Indian U15-ch Girls 2023"]
[Site "Jalgaon"]
[Date "2023.12.31"]
[Round "7.2"]
[White "Shubhi Gupta"]
[Black "Aamuktha Guntaka"]
[Result "1-0"]
[ECO "D40"]
[WhiteElo "1902"]
[BlackElo "1532"]
[Annotator "RC"]
[PlyCount "85"]
[EventDate "2023.12.30"]
[EventType "swiss"]
[EventCountry "IND"]
[SourceTitle "playchess.com"]
[Source "ChessBase"]
[SourceQuality "1"]
[TimeControl "5400+30"]

1. d4 {[%emt 0:02:00]} d5 {[%emt 0:01:27]} 2. Nf3 {[%emt 0:00:19]} e6 {[%emt 0:00:26]} 3. e3 {[%emt 0:02:55]} c5 {[%emt 0:01:42]} 4. c4 {[%emt 0:00:41]} Nf6 {[%emt 0:01:34]} 5. Nc3 {[%emt 0:00:24]} Nc6 {[%emt 0:01:02]} 6. a3 {[%emt 0:00:38]} a5 {[%emt 0:08:18]} 7. Bd3 {[%emt 0:00:28]} Be7 {[%emt 0:01:22]} 8. O-O {[%emt 0:00:48]} O-O {[%emt 0:00:21]} 9. b3 {[%emt 0:00:42]} b6 {[%emt 0:02:32]} 10. Bb2 {[%emt 0:01:46]} Bb7 {[%emt 0:02:00]} 11. Rc1 {[%emt 0:02:30]} Rc8 {[%emt 0:03:17]} 12. Bb1 {[%emt 0:03:12]} Na7 {[%emt 0:13:53]} 13. Ne5 {[%emt 0:08:59]} Bd6 {[%emt 0:10:21]} 14. f4 {[%emt 0:03:17]} Ne4 {[%emt 0:09:14]} 15. cxd5 {[%emt 0:01:53]} exd5 {[%emt 0:03:39]} 16. Nxe4 {[%emt 0:02:09]} dxe4 {[%emt 0:00:11]} 17. Nc4 {[%emt 0:01:15]} Be7 {[%emt 0:05:44]} 18. Qg4 {[%emt 0:00:52]} f5 {[%emt 0:02:27]} 19. Qh5 {[%emt 0:01:18]} Ba6 {[%emt 0:02:53]} 20. Rfd1 {[%emt 0:02:24]} Bxc4 {[%emt 0:01:34]} 21. Rxc4 {[%emt 0:01:17]} Qe8 {[%emt 0:03:23]} 22. Qe2 {[%emt 0:02:42]} b5 {[%emt 0:01:53]} 23. Rc2 {[%emt 0:01:25]} cxd4 {[%emt 0:02:12]} 24. Bxd4 {[%emt 0:00:38]} Nc6 {[%emt 0:01:23]} 25. Bb2 {[%emt 0:06:38]} b4 {[%emt 0:01:21]} 26. a4 {[%emt 0:00:50]} Na7 {[%emt 0:03:27]} 27. g4 {[%emt 0:03:08]} Rxc2 {[%emt 0:07:08]} 28. Qxc2 {[%emt 0:00:57]} Qg6 {[%emt 0:01:03]} 29. Qg2 {[%emt 0:00:25]} Bc5 {[%emt 0:00:56]} 30. Bd4 {[%emt 0:00:30]} Bxd4 {[%emt 0:00:42]} 31. Rxd4 {[%emt 0:00:07]} Rc8 {[%emt 0:00:45]} 32. Rd1 {[%emt 0:00:51]} Qb6 {[%emt 0:00:31]} 33. Qd2 {[%emt 0:02:08]} Nc6 {[%emt 0:02:40]} 34. Qd5+ {[%emt 0:01:47]} Kh8 {[%emt 0:00:14]} 35. Re1 {[%emt 0:00:03]} Ne7 {[%emt 0:00:54]} 36. Qd7 {[%emt 0:00:05]} Qg6 {[%emt 0:02:23]} 37. h3 {[%emt 0:00:19]} Qf6 {[%emt 0:03:04]} 38. g5 {[%emt 0:00:21]} Qf8 {[%emt 0:00:31]} 39. Rd1 {[%emt 0:00:37]} Nc6 {[%emt 0:00:39]} 40. Qe6 {[%emt 0:00:23]} Nb8 {[%emt 0:00:49]} 41. Kf2 {[%emt 0:00:44]} Rd8 {[%emt 0:00:18]} 42. Qxf5 {[%emt 0:00:17]} Qe7 {[%emt 0:00:43]} 43. Qxe4 {[%emt 0:00:09]} 1-0

[Event "48th Indian U15-ch Girls 2023"]
[Site "Jalgaon"]
[Date "2023.12.31"]
[Round "7.3"]
[White "Nivedita V C"]
[Black "Saparya Ghosh"]
[Result "1-0"]
[ECO "D02"]
[WhiteElo "1638"]
[BlackElo "1662"]
[Annotator "NA RC"]
[PlyCount "109"]
[EventDate "2023.12.30"]
[EventType "swiss"]
[EventCountry "IND"]
[SourceTitle "playchess.com"]
[Source "ChessBase"]
[SourceQuality "1"]
[TimeControl "5400+30"]

1. Nf3 {[%emt 0:04:54]} d5 {[%emt 0:02:46]} 2. g3 {[%emt 0:00:05]} Nf6 {[%emt 0:00:08]} 3. Bg2 {[%emt 0:00:05]} c6 {[%emt 0:00:07]} 4. O-O {[%emt 0:00:06]} Bg4 {[%emt 0:00:06]} 5. Ne5 {[%emt 0:05:36]} Bf5 {[%emt 0:01:59]} 6. d4 {[%emt 0:01:29]} e6 {[%emt 0:00:46]} 7. c4 {[%emt 0:00:29]} Bd6 {[%emt 0:01:10]} 8. Qb3 {[%emt 0:03:06]} Qc8 {[%emt 0:06:49]} 9. Bf4 {[%emt 0:01:41]} O-O {[%emt 0:00:31]} 10. Ng6 {[%emt 0:01:07]} Bxf4 {[%emt 0:01:23]} 11. Ne7+ {[%emt 0:00:08]} Kh8 {[%emt 0:00:54]} 12. Nxc8 {[%emt 0:00:06]} Rxc8 {[%emt 0:01:53]} 13. gxf4 {[%emt 0:00:08]} dxc4 {[%emt 0:00:54]} 14. Qxb7 {[%emt 0:00:32]} Nbd7 {[%emt 0:00:04]} 15. Qa6 {[%emt 0:01:42]} Nb6 {[%emt 0:01:53]} 16. Nc3 {[%emt 0:00:34]} Nbd5 {[%emt 0:02:18]} 17. e4 {[%emt 0:00:47]} Nxc3 {[%emt 0:00:10]} 18. bxc3 {[%emt 0:00:07]} Nxe4 {[%emt 0:00:29]} 19. Qxc4 {[%emt 0:00:07]} Nd2 {[%emt 0:00:09]} 20. Qa6 {[%emt 0:02:04]} Nxf1 {[%emt 0:00:15]} 21. Rxf1 {[%emt 0:01:37]} Rc7 {[%emt 0:00:28]} 22. Bxc6 {[%emt 0:01:48]} Rac8 {[%emt 0:01:36]} 23. Bb7 {[%emt 0:01:05]} Rb8 {[%emt 0:00:07]} 24. Bg2 {[%emt 0:00:06]} h6 {[%emt 0:01:29]} 25. h3 {[%emt 0:00:58]} Rb2 {[%emt 0:00:40]} 26. Rc1 {[%emt 0:00:28]} Rd2 {[%emt 0:00:46]} 27. Qd6 {[%emt 0:00:54]} Rc4 {[%emt 0:00:35]} 28. Qb8+ {[%emt 0:00:29]} Kh7 {[%emt 0:00:06]} 29. Qxa7 {[%emt 0:00:05]} Bg6 {[%emt 0:00:53]} 30. Qa6 {[%emt 0:00:09]} Rdxd4 {[%emt 0:00:13]} 31. cxd4 {[%emt 0:00:35]} Rxc1+ {[%emt 0:00:04]} 32. Kh2 {[%emt 0:00:05]} Rd1 {[%emt 0:00:31]} 33. Qc4 {[%emt 0:00:33]} Rd2 {[%emt 0:00:17]} 34. a4 {[%emt 0:01:08]} Rxf2 {[%emt 0:00:07]} 35. Kg1 {[%emt 0:00:22]} Rxf4 {[%emt 0:00:40]} 36. a5 {[%emt 0:00:08]} e5 {[%emt 0:00:03]} 37. a6 {[%emt 0:00:12]} Rxd4 {[%emt 0:00:10]} 38. Qxd4 {[%emt 0:00:07]} exd4 {[%emt 0:00:07]} 39. a7 {[%emt 0:00:04]} d3 {[%emt 0:00:23]} 40. a8=Q {[%emt 0:00:08]} d2 {[%emt 0:00:12]} 41. Bf3 {[%emt 0:00:05]} Bc2 {[%emt 0:00:20]} 42. Be4+ {[%emt 0:00:05]} Bxe4 {[%emt 0:00:07]} 43. Qxe4+ {[%emt 0:00:05]} g6 {[%emt 0:00:10]} 44. Qd5 {[%emt 0:00:04]} d1=Q+ {[%emt 0:00:29]} 45. Qxd1 {[%emt 0:00:04]} g5 {[%emt 0:00:38]} 46. Kg2 {[%emt 0:00:10]} Kg6 {[%emt 0:00:05]} 47. Qd3+ {[%emt 0:00:07]} f5 {[%emt 0:00:07]} 48. h4 {[%emt 0:00:09]} gxh4 {[%emt 0:00:10]} 49. Kh3 {[%emt 0:00:07]} Kg5 {[%emt 0:00:06]} 50. Qe3+ {[%emt 0:00:08]} f4 {[%emt 0:00:12]} 51. Qe5+ {[%emt 0:00:03]} Kg6 {[%emt 0:00:19]} 52. Kxh4 {[%emt 0:00:05]} f3 {[%emt 0:00:13]} 53. Qe6+ {[%emt 0:00:03]} Kg7 {[%emt 0:00:07]} 54. Kh5 {[%emt 0:00:03]} f2 {[%emt 0:00:11]} 55. Qe7+ {[%emt 0:00:03]} 1-0

[Event "48th Indian U15-ch Girls 2023"]
[Site "Jalgaon"]
[Date "2023.12.31"]
[Round "7.4"]
[White "Anupam M Sreekumar"]
[Black "Mrittika Mallick"]
[Result "0-1"]
[ECO "B23"]
[WhiteElo "1642"]
[BlackElo "1970"]
[Annotator "RC"]
[PlyCount "74"]
[EventDate "2023.12.30"]
[EventType "swiss"]
[EventCountry "IND"]
[SourceTitle "playchess.com"]
[Source "ChessBase"]
[SourceQuality "1"]
[TimeControl "5400+30"]

1. e4 {[%emt 0:03:29]} c5 {[%emt 0:00:07]} 2. Nc3 {[%emt 0:00:35]} d6 {[%emt 0:01:49]} 3. f4 {[%emt 0:01:00]} Nc6 {[%emt 0:00:28]} 4. Nf3 {[%emt 0:00:38]} e6 {[%emt 0:02:03]} 5. a4 {[%emt 0:03:23]} Nge7 {[%emt 0:01:45]} 6. Bb5 {[%emt 0:07:54]} a6 {[%emt 0:00:43]} 7. Bxc6+ {[%emt 0:01:03]} Nxc6 {[%emt 0:00:14]} 8. d3 {[%emt 0:00:16]} g6 {[%emt 0:00:39]} 9. O-O {[%emt 0:02:41]} Bg7 {[%emt 0:00:50]} 10. Qe1 {[%emt 0:01:14]} O-O {[%emt 0:00:38]} 11. Kh1 {[%emt 0:02:46]} Nd4 {[%emt 0:02:03]} 12. Nxd4 {[%emt 0:02:48]} cxd4 {[%emt 0:00:26]} 13. Ne2 {[%emt 0:01:14]} f5 {[%emt 0:02:18]} 14. Qb4 {[%emt 0:06:25]} a5 {[%emt 0:02:11]} 15. Qc4 {[%emt 0:06:21]} Bd7 {[%emt 0:08:07]} 16. c3 {[%emt 0:14:21]} Rc8 {[%emt 0:17:55]} 17. Qb3 {[%emt 0:00:56]} fxe4 {[%emt 0:00:39]} 18. dxe4 {[%emt 0:05:55]} d3 {[%emt 0:03:51]} 19. Nd4 {[%emt 0:00:38]} Qe8 {[%emt 0:01:35]} 20. Rd1 {[%emt 0:05:33]} d5 {[%emt 0:11:13]} 21. exd5 {[%emt 0:08:41]} Bxd4 {[%emt 0:01:45]} 22. cxd4 {[%emt 0:00:03]} exd5 {[%emt 0:00:56]} 23. Qxd3 {[%emt 0:12:05]} Bg4 {[%emt 0:05:31]} 24. Rg1 {[%emt 0:00:21]} Bf5 {[%emt 0:00:08]} 25. Qb5 {[%emt 0:04:40]} Qxb5 {[%emt 0:06:01]} 26. axb5 {[%emt 0:00:02]} b6 {[%emt 0:01:05]} 27. Bd2 {[%emt 0:02:09]} Rc2 {[%emt 0:00:13]} 28. Bc3 {[%emt 0:00:20]} Be4 {[%emt 0:00:48]} 29. Raf1 {[%emt 0:03:16]} g5 {[%emt 0:06:58]} 30. h3 {[%emt 0:02:34]} Rxf4 {[%emt 0:00:47]} 31. Rxf4 {[%emt 0:01:14]} gxf4 {[%emt 0:00:01]} 32. h4 {[%emt 0:00:24]} Kf7 {[%emt 0:01:59]} 33. Kh2 {[%emt 0:00:02]} Kf6 {[%emt 0:01:16]} 34. Kh3 {[%emt 0:00:22]} a4 {[%emt 0:01:44]} 35. Ra1 {[%emt 0:01:04]} Rxg2 {[%emt 0:00:22]} 36. Rxa4 {[%emt 0:00:44]} f3 {[%emt 0:00:05]} 37. Ra8 {[%emt 0:00:47]} Bf5# {[%emt 0:00:06]} 0-1

[Event "48th Indian U15-ch Girls 2023"]
[Site "Jalgaon"]
[Date "2023.12.31"]
[Round "7.5"]
[White "Kirthika B"]
[Black "Arshiya Das"]
[Result "1/2-1/2"]
[ECO "B06"]
[WhiteElo "1605"]
[BlackElo "1729"]
[Annotator "NA RC"]
[PlyCount "54"]
[EventDate "2023.12.30"]
[EventType "swiss"]
[EventCountry "IND"]
[SourceTitle "playchess.com"]
[Source "ChessBase"]
[SourceQuality "1"]
[TimeControl "5400+30"]

1. e4 {[%emt 0:00:03]} g6 {[%emt 0:00:22]} 2. d4 {[%emt 0:00:14]} Bg7 {[%emt 0:00:04]} 3. Nf3 {[%emt 0:00:05]} d6 {[%emt 0:00:03]} 4. c3 {[%emt 0:00:06]} a6 {[%emt 0:00:37]} 5. Bd3 {[%emt 0:01:10]} Nf6 {[%emt 0:01:10]} 6. O-O {[%emt 0:00:30]} O-O {[%emt 0:00:09]} 7. h3 {[%emt 0:00:43]} Re8 {[%emt 0:02:36]} 8. Be3 {[%emt 0:00:51]} e5 {[%emt 0:01:33]} 9. Nbd2 {[%emt 0:00:57]} Nbd7 {[%emt 0:01:42]} 10. Re1 {[%emt 0:01:21]} Nf8 {[%emt 0:00:43]} 11. a4 {[%emt 0:07:22]} h6 {[%emt 0:00:17]} 12. Qc2 {[%emt 0:06:10]} g5 {[%emt 0:01:00]} 13. c4 {[%emt 0:05:08]} Ng6 {[%emt 0:03:17]} 14. dxe5 {[%emt 0:03:35]} dxe5 {[%emt 0:00:26]} 15. c5 {[%emt 0:03:43]} Nh5 {[%emt 0:04:49]} 16. Bc4 {[%emt 0:07:55]} Nhf4 {[%emt 0:00:55]} 17. Bxf4 {[%emt 0:01:18]} Nxf4 {[%emt 0:00:54]} 18. Nf1 {[%emt 0:02:10]} Qf6 {[%emt 0:01:03]} 19. N3h2 {[%emt 0:01:32]} Bf8 {[%emt 0:03:38]} 20. b4 {[%emt 0:03:01]} a5 {[%emt 0:01:46]} 21. Ne3 {[%emt 0:13:33]} c6 {[%emt 0:04:35]} 22. Nhg4 {[%emt 0:03:41]} Bxg4 {[%emt 0:07:38]} 23. Nxg4 {[%emt 0:02:01]} Qe7 {[%emt 0:02:10]} 24. Ne3 {[%emt 0:02:06]} Qf6 {[%emt 0:00:02]} 25. Ng4 {[%emt 0:00:03]} Qe7 {[%emt 0:00:03]} 26. Ne3 {[%emt 0:00:06]} Qf6 {[%emt 0:08:16]} 27. Ng4 {[%emt 0:00:54]} Qe7 {[%emt 0:00:00]} 1/2-1/2